[Event "23rd ETCC Women 2021"]
[Site "Catez"]
[Date "2021.11.16"]
[Round "5.10"]
[White "Osmak, Iulija"]
[Black "Mammadova, Gulnar"]
[Result "1-0"]
[ECO "E11"]
[WhiteElo "2423"]
[BlackElo "2395"]
[Annotator "NA"]
[PlyCount "79"]
[EventDate "2021.11.08"]
[EventType "team-tourn"]
[EventCountry "SLO"]
[SourceTitle "playchess.com"]
[Source "ChessBase"]
[SourceQuality "1"]
[WhiteTeam "Ukraine"]
[BlackTeam "Azerbaijan"]
[WhiteTeamCountry "UKR"]
[BlackTeamCountry "AZE"]
[TimeControl "40/5400+30:1800+30"]

1. d4 {[%emt 0:00:02]} Nf6 {[%emt 0:00:06]} 2. c4 {[%emt 0:00:17]} e6 {[%emt 0:
00:17]} 3. g3 {[%emt 0:02:05]} d5 {[%emt 0:03:02]} 4. Nf3 {[%emt 0:01:23]} Bb4+
{[%emt 0:04:05]} 5. Bd2 {[%emt 0:02:02]} Be7 {[%emt 0:00:51]} 6. Bg2 {[%emt 0:
00:35]} O-O {[%emt 0:00:06]} 7. Qc2 {[%emt 0:00:11]} Ne4 {[%emt 0:08:28]} 8.
O-O {[%emt 0:02:49]} b6 {[%emt 0:03:40]} 9. Bf4 {[%emt 0:08:46]} c6 {[%emt 0:
11:28]} 10. Ne5 {[%emt 0:07:01]} f6 {[%emt 0:03:25]} 11. Nxc6 {[%emt 0:14:52]}
Nxc6 {[%emt 0:00:40]} 12. cxd5 {[%emt 0:00:05]} Nb4 {[%emt 0:12:58]} 13. Qxe4 {
[%emt 0:00:40]} exd5 {[%emt 0:00:13]} 14. Qf3 {[%emt 0:02:07]} Be6 {[%emt 0:06:
17]} 15. Rc1 {[%emt 0:17:54]} g5 {[%emt 0:04:24]} 16. Bd2 {[%emt 0:01:51]} Qd7
{[%emt 0:02:18]} 17. Bxb4 {[%emt 0:04:49]} Bxb4 {[%emt 0:00:06]} 18. Qb3 {
[%emt 0:00:17]} Be7 {[%emt 0:02:02]} 19. Nc3 {[%emt 0:00:09]} Rfd8 {[%emt 0:00:
25]} 20. Nb5 {[%emt 0:09:35]} Rac8 {[%emt 0:00:42]} 21. Rxc8 {[%emt 0:00:28]}
Rxc8 {[%emt 0:02:59]} 22. Nc3 {[%emt 0:01:35]} Rd8 {[%emt 0:01:51]} 23. Rc1 {
[%emt 0:00:54]} Rc8 {[%emt 0:08:29]} 24. Rd1 {[%emt 0:00:50]} Rd8 {[%emt 0:01:
03]} 25. Rd3 {[%emt 0:03:06]} Bf7 {[%emt 0:03:01]} 26. Re3 {[%emt 0:02:39]} Bf8
{[%emt 0:00:48]} 27. Qb5 {[%emt 0:02:13]} Qxb5 {[%emt 0:06:41]} 28. Nxb5 {
[%emt 0:00:04]} a6 {[%emt 0:00:05]} 29. Nc7 {[%emt 0:08:05]} Rd7 {[%emt 0:05:
40]} 30. Rc3 {[%emt 0:00:00]} Kg7 {[%emt 0:03:01]} 31. Nxa6 {[%emt 0:00:00]}
Kg6 {[%emt 0:03:54]} 32. Rc6 {[%emt 0:00:35]} Rd6 {[%emt 0:00:38]} 33. Nb4 {
[%emt 0:02:17]} Rxc6 {[%emt 0:00:51]} 34. Nxc6 {[%emt 0:00:04]} Bd6 {[%emt 0:
00:03]} 35. Na7 {[%emt 0:00:30]} f5 {[%emt 0:00:52]} 36. Nc8 {[%emt 0:00:59]}
Bc7 {[%emt 0:00:12]} 37. Bxd5 {[%emt 0:00:41]} Be8 {[%emt 0:00:06]} 38. Bc6 {
[%emt 0:01:39]} Bf7 {[%emt 0:00:14]} 39. b3 {[%emt 0:00:55]} Kf6 {[%emt 0:00:
09]} 40. Na7 {[%emt 0:00:53]} 1-0

[Event "23rd ETCC Women 2021"]
[Site "Catez"]
[Date "2021.11.16"]
[Round "5.11"]
[White "Balajayeva, Khanim"]
[Black "Buksa, Nataliya"]
[Result "1-0"]
[ECO "B22"]
[WhiteElo "2369"]
[BlackElo "2410"]
[Annotator "NA"]
[PlyCount "75"]
[EventDate "2021.11.08"]
[EventType "team-tourn"]
[EventCountry "SLO"]
[SourceTitle "playchess.com"]
[Source "ChessBase"]
[SourceQuality "1"]
[WhiteTeam "Azerbaijan"]
[BlackTeam "Ukraine"]
[WhiteTeamCountry "AZE"]
[BlackTeamCountry "UKR"]
[TimeControl "40/5400+30:1800+30"]

1. e4 {[%emt 0:00:06]} c5 {[%emt 0:00:25]} 2. c3 {[%emt 0:00:05]} Nf6 {[%emt 0:
00:17]} 3. e5 {[%emt 0:00:10]} Nd5 {[%emt 0:00:05]} 4. Nf3 {[%emt 0:00:04]} Nc6
{[%emt 0:00:03]} 5. d4 {[%emt 0:00:13]} cxd4 {[%emt 0:00:05]} 6. Bc4 {[%emt 0:
00:03]} Nb6 {[%emt 0:00:37]} 7. Bb3 {[%emt 0:00:11]} d6 {[%emt 0:00:21]} 8.
exd6 {[%emt 0:00:25]} Qxd6 {[%emt 0:00:04]} 9. O-O {[%emt 0:00:21]} Be6 {
[%emt 0:00:07]} 10. Na3 {[%emt 0:00:04]} dxc3 {[%emt 0:00:18]} 11. Qe2 {
[%emt 0:02:25]} Bxb3 {[%emt 0:00:07]} 12. Nb5 {[%emt 0:00:22]} Qb8 {[%emt 0:00:
04]} 13. axb3 {[%emt 0:00:11]} e6 {[%emt 0:00:17]} 14. g3 {[%emt 0:09:53]} e5 {
[%emt 0:00:30]} 15. Nbd4 {[%emt 0:03:43]} f6 {[%emt 0:18:15]} 16. bxc3 {
[%emt 0:10:24]} Kf7 {[%emt 0:02:33]} 17. Nxc6 {[%emt 0:10:22]} bxc6 {[%emt 0:
00:04]} 18. Qe4 {[%emt 0:02:20]} Qc7 {[%emt 0:11:08]} 19. Qf5 {[%emt 0:04:09]}
Re8 {[%emt 0:11:47]} 20. Be3 {[%emt 0:05:54]} Kg8 {[%emt 0:01:28]} 21. Bxb6 {
[%emt 0:08:58]} axb6 {[%emt 0:06:48]} 22. Rfd1 {[%emt 0:00:38]} Qf7 {[%emt 0:
04:40]} 23. Rd7 {[%emt 0:07:40]} Qxb3 {[%emt 0:04:00]} 24. Raa7 {[%emt 0:00:33]
} Qe6 {[%emt 0:02:30]} 25. Qxe6+ {[%emt 0:14:35]} Rxe6 {[%emt 0:00:04]} 26. Ra8
{[%emt 0:00:06]} h5 {[%emt 0:11:32]} 27. Rb8 {[%emt 0:04:45]} b5 {[%emt 0:00:
20]} 28. Kf1 {[%emt 0:01:39]} c5 {[%emt 0:06:06]} 29. Rxb5 {[%emt 0:05:04]} e4
{[%emt 0:04:00]} 30. Nh4 {[%emt 0:02:43]} Kh7 {[%emt 0:00:04]} 31. Rbb7 {
[%emt 0:02:07]} Rg8 {[%emt 0:03:23]} 32. Ke2 {[%emt 0:02:36]} Kh6 {[%emt 0:00:
40]} 33. Rb8 {[%emt 0:00:56]} g6 {[%emt 0:04:09]} 34. Rf7 {[%emt 0:00:31]} e3 {
[%emt 0:02:13]} 35. fxe3 {[%emt 0:01:12]} g5 {[%emt 0:00:28]} 36. Nf3 {[%emt 0:
00:50]} g4 {[%emt 0:00:20]} 37. Nd2 {[%emt 0:00:18]} h4 {[%emt 0:00:18]} 38.
Rbxf8 {[%emt 0:00:29]} 1-0

[Event "23rd ETCC Women 2021"]
[Site "Catez"]
[Date "2021.11.16"]
[Round "5.12"]
[White "Zhukova, Natalia"]
[Black "Beydullayeva, Govhar"]
[Result "1-0"]
[ECO "D40"]
[WhiteElo "2331"]
[BlackElo "2278"]
[Annotator "NA"]
[PlyCount "103"]
[EventDate "2021.11.08"]
[EventType "team-tourn"]
[EventCountry "SLO"]
[SourceTitle "playchess.com"]
[Source "ChessBase"]
[SourceQuality "1"]
[WhiteTeam "Ukraine"]
[BlackTeam "Azerbaijan"]
[WhiteTeamCountry "UKR"]
[BlackTeamCountry "AZE"]
[TimeControl "40/5400+30:1800+30"]

1. c4 {[%emt 0:00:04]} e6 {[%emt 0:00:19]} 2. Nc3 {[%emt 0:00:16]} c5 {[%emt 0:
00:17]} 3. Nf3 {[%emt 0:04:19]} Nf6 {[%emt 0:00:14]} 4. e3 {[%emt 0:02:31]} Nc6
{[%emt 0:05:03]} 5. d4 {[%emt 0:00:20]} d5 {[%emt 0:00:14]} 6. a3 {[%emt 0:00:
29]} a6 {[%emt 0:15:30]} 7. dxc5 {[%emt 0:00:38]} Bxc5 {[%emt 0:08:29]} 8. b4 {
[%emt 0:00:12]} Bd6 {[%emt 0:00:52]} 9. Bb2 {[%emt 0:00:52]} O-O {[%emt 0:00:
49]} 10. Qc2 {[%emt 0:10:25]} Qe7 {[%emt 0:03:26]} 11. Rd1 {[%emt 0:02:18]} Rd8
{[%emt 0:03:36]} 12. Ng5 {[%emt 0:16:45]} h6 {[%emt 0:10:56]} 13. h4 {[%emt 0:
23:53]} Be5 {[%emt 0:15:44]} 14. f4 {[%emt 0:08:05]} Bc7 {[%emt 0:07:56]} 15.
Be2 {[%emt 0:15:12]} d4 {[%emt 0:03:01]} 16. Nce4 {[%emt 0:00:11]} Nxe4 {
[%emt 0:02:41]} 17. Qxe4 {[%emt 0:02:32]} f5 {[%emt 0:01:42]} 18. Qf3 {[%emt 0:
00:14]} e5 {[%emt 0:05:22]} 19. c5 {[%emt 0:02:29]} hxg5 {[%emt 0:12:00]} 20.
hxg5 {[%emt 0:00:11]} Qf7 {[%emt 0:00:35]} 21. Qh3 {[%emt 0:02:46]} Qg6 {
[%emt 0:00:34]} 22. Qh8+ {[%emt 0:02:40]} Kf7 {[%emt 0:00:05]} 23. Qh4 {
[%emt 0:00:48]} Ke7 {[%emt 0:00:25]} 24. fxe5 {[%emt 0:00:56]} Nxe5 {[%emt 0:
01:38]} 25. exd4 {[%emt 0:01:39]} Nf7 {[%emt 0:00:11]} 26. d5 {[%emt 0:00:36]}
Rh8 {[%emt 0:01:05]} 27. d6+ {[%emt 0:02:00]} Bxd6 {[%emt 0:00:25]} 28. cxd6+ {
[%emt 0:00:01]} Kd7 {[%emt 0:00:37]} 29. Bh5 {[%emt 0:00:44]} Qxg5 {[%emt 0:00:
40]} 30. Qxg5 {[%emt 0:00:18]} Nxg5 {[%emt 0:00:03]} 31. Bxg7 {[%emt 0:00:57]}
Rg8 {[%emt 0:00:11]} 32. Bb2 {[%emt 0:00:32]} b5 {[%emt 0:00:30]} 33. Bf3 {
[%emt 0:00:32]} Rb8 {[%emt 0:00:46]} 34. Kf2 {[%emt 0:00:17]} Bb7 {[%emt 0:00:
08]} 35. Bf6 {[%emt 0:00:41]} Ne4+ {[%emt 0:00:49]} 36. Bxe4 {[%emt 0:00:04]}
Bxe4 {[%emt 0:00:01]} 37. Rh7+ {[%emt 0:00:17]} Ke6 {[%emt 0:00:04]} 38. Bh4 {
[%emt 0:00:37]} Rxg2+ {[%emt 0:01:28]} 39. Kf1 {[%emt 0:00:01]} f4 {[%emt 0:00:
50]} 40. Re7+ {[%emt 0:01:28]} Kf5 {[%emt 0:00:04]} 41. d7 {[%emt 0:07:18]} Rh2
{[%emt 0:05:25]} 42. Re8 {[%emt 0:06:37]} Rh1+ {[%emt 0:11:48]} 43. Ke2 {
[%emt 0:01:09]} Bf3+ {[%emt 0:00:15]} 44. Kxf3 {[%emt 0:00:11]} Rxd1 {[%emt 0:
00:03]} 45. d8=Q {[%emt 0:05:31]} Rbxd8 {[%emt 0:00:22]} 46. Rxd8 {[%emt 0:00:
06]} Rh1 {[%emt 0:01:45]} 47. Rf8+ {[%emt 0:02:13]} Ke5 {[%emt 0:02:49]} 48.
Rxf4 {[%emt 0:00:53]} Rb1 {[%emt 0:04:30]} 49. Re4+ {[%emt 0:05:53]} Kd5 {
[%emt 0:00:03]} 50. Re3 {[%emt 0:01:30]} Kc4 {[%emt 0:01:55]} 51. Ke4 {[%emt 0:
01:03]} Rf1 {[%emt 0:01:30]} 52. Be1 {[%emt 0:00:33]} 1-0

[Event "23rd ETCC Women 2021"]
[Site "Catez"]
[Date "2021.11.16"]
[Round "5.13"]
[White "Tsolakidou, Stavroula"]
[Black "Sebag, Marie"]
[Result "1/2-1/2"]
[ECO "D45"]
[WhiteElo "2377"]
[BlackElo "2447"]
[Annotator "NA"]
[PlyCount "89"]
[EventDate "2021.11.08"]
[EventType "team-tourn"]
[EventCountry "SLO"]
[SourceTitle "playchess.com"]
[Source "ChessBase"]
[SourceQuality "1"]
[WhiteTeam "Greece"]
[BlackTeam "France"]
[WhiteTeamCountry "GRE"]
[BlackTeamCountry "FRA"]
[TimeControl "40/5400+30:1800+30"]

1. d4 {[%emt 0:00:03]} d5 {[%emt 0:00:05]} 2. c4 {[%emt 0:00:06]} c6 {[%emt 0:
00:03]} 3. Nf3 {[%emt 0:00:11]} Nf6 {[%emt 0:00:04]} 4. Nc3 {[%emt 0:00:08]} e6
{[%emt 0:00:05]} 5. e3 {[%emt 0:00:24]} Nbd7 {[%emt 0:00:18]} 6. Qc2 {[%emt 0:
00:15]} Bd6 {[%emt 0:00:26]} 7. b3 {[%emt 0:00:22]} O-O {[%emt 0:01:13]} 8. Be2
{[%emt 0:00:11]} b6 {[%emt 0:02:11]} 9. O-O {[%emt 0:00:21]} Bb7 {[%emt 0:00:
47]} 10. Bb2 {[%emt 0:00:16]} Qe7 {[%emt 0:00:37]} 11. Rad1 {[%emt 0:00:37]}
Rad8 {[%emt 0:00:16]} 12. Rfe1 {[%emt 0:00:18]} Rfe8 {[%emt 0:00:22]} 13. Bf1 {
[%emt 0:00:38]} e5 {[%emt 0:13:43]} 14. dxe5 {[%emt 0:03:01]} Nxe5 {[%emt 0:03:
01]} 15. Nxe5 {[%emt 0:16:34]} Bxe5 {[%emt 0:19:21]} 16. cxd5 {[%emt 0:00:08]}
Qc5 {[%emt 0:10:20]} 17. Re2 {[%emt 0:31:09]} Ba6 {[%emt 0:10:39]} 18. Red2 {
[%emt 0:10:29]} Bxf1 {[%emt 0:00:08]} 19. Kxf1 {[%emt 0:01:38]} cxd5 {[%emt 0:
01:24]} 20. Ne2 {[%emt 0:05:00]} Ne4 {[%emt 0:20:36]} 21. Qxe4 {[%emt 0:04:21]}
dxe4 {[%emt 0:00:35]} 22. Rxd8 {[%emt 0:00:08]} Kf8 {[%emt 0:00:16]} 23. R8d5 {
[%emt 0:00:14]} Qc7 {[%emt 0:01:28]} 24. Bxe5 {[%emt 0:00:57]} Rxe5 {[%emt 0:
00:05]} 25. Rd7 {[%emt 0:00:04]} Qc2 {[%emt 0:04:34]} 26. R7d2 {[%emt 0:00:05]}
Qc6 {[%emt 0:01:13]} 27. Rd7 {[%emt 0:06:04]} Re7 {[%emt 0:02:13]} 28. R7d6 {
[%emt 0:01:26]} Qb5 {[%emt 0:01:20]} 29. Rc1 {[%emt 0:05:13]} g6 {[%emt 0:01:
23]} 30. Rd4 {[%emt 0:03:28]} Kg7 {[%emt 0:03:06]} 31. Rcc4 {[%emt 0:00:50]}
Rd7 {[%emt 0:02:01]} 32. Nc3 {[%emt 0:03:22]} Qf5 {[%emt 0:00:06]} 33. Nxe4 {
[%emt 0:02:48]} Rxd4 {[%emt 0:00:29]} 34. Rxd4 {[%emt 0:00:04]} Qc8 {[%emt 0:
00:28]} 35. Rc4 {[%emt 0:01:09]} Qa6 {[%emt 0:00:17]} 36. a4 {[%emt 0:00:42]}
b5 {[%emt 0:00:24]} 37. axb5 {[%emt 0:00:36]} Qxb5 {[%emt 0:01:28]} 38. Nd2 {
[%emt 0:02:51]} Qd5 {[%emt 0:01:10]} 39. Rd4 {[%emt 0:00:15]} Qh5 {[%emt 0:00:
13]} 40. g3 {[%emt 0:00:41]} Qh3+ {[%emt 0:01:07]} 41. Kg1 {[%emt 0:30:44]} h5
{[%emt 0:30:15]} 42. Ra4 {[%emt 0:00:00]} Qd7 {[%emt 0:00:00]} 43. Rd4 {
[%emt 0:00:00]} Qh3 {[%emt 0:00:00]} 44. Ra4 {[%emt 0:00:00]} Qd7 {[%emt 0:00:
00]} 45. Rd4 {[%emt 0:00:00]} 1/2-1/2

[Event "23rd ETCC Women 2021"]
[Site "Catez"]
[Date "2021.11.16"]
[Round "5.14"]
[White "Guichard, Pauline"]
[Black "Avramidou, Anastasia"]
[Result "0-1"]
[ECO "D37"]
[WhiteElo "2409"]
[BlackElo "2217"]
[Annotator "RC"]
[PlyCount "186"]
[EventDate "2021.11.08"]
[EventType "team-tourn"]
[EventCountry "SLO"]
[SourceTitle "playchess.com"]
[Source "ChessBase"]
[SourceQuality "1"]
[WhiteTeam "France"]
[BlackTeam "Greece"]
[WhiteTeamCountry "FRA"]
[BlackTeamCountry "GRE"]
[TimeControl "40/5400+30:1800+30"]

1. d4 {[%emt 0:00:03]} d5 {[%emt 0:00:19]} 2. c4 {[%emt 0:00:07]} e6 {[%emt 0:
00:11]} 3. Nf3 {[%emt 0:00:08]} Nf6 {[%emt 0:00:08]} 4. Nc3 {[%emt 0:00:08]} a6
{[%emt 0:00:30]} 5. cxd5 {[%emt 0:01:07]} exd5 {[%emt 0:03:09]} 6. Bg5 {
[%emt 0:00:16]} Be6 {[%emt 0:00:14]} 7. Bxf6 {[%emt 0:01:45]} Qxf6 {[%emt 0:00:
18]} 8. Qb3 {[%emt 0:01:09]} b6 {[%emt 0:01:10]} 9. e3 {[%emt 0:18:09]} Qd8 {
[%emt 0:09:07]} 10. Bd3 {[%emt 0:07:38]} Bd6 {[%emt 0:11:04]} 11. Qc2 {[%emt 0:
00:49]} h6 {[%emt 0:06:21]} 12. e4 {[%emt 0:11:21]} dxe4 {[%emt 0:07:44]} 13.
Bxe4 {[%emt 0:00:12]} Ra7 {[%emt 0:00:12]} 14. O-O {[%emt 0:09:12]} O-O {
[%emt 0:00:10]} 15. d5 {[%emt 0:06:18]} Bg4 {[%emt 0:03:46]} 16. Nd4 {[%emt 0:
03:40]} Qf6 {[%emt 0:02:55]} 17. Nf5 {[%emt 0:04:56]} Be5 {[%emt 0:07:19]} 18.
Ne3 {[%emt 0:02:15]} Bd7 {[%emt 0:05:06]} 19. Rac1 {[%emt 0:02:20]} a5 {
[%emt 0:11:38]} 20. Nc4 {[%emt 0:08:30]} Bxc3 {[%emt 0:08:26]} 21. Qxc3 {
[%emt 0:01:00]} Qxc3 {[%emt 0:01:19]} 22. Rxc3 {[%emt 0:00:05]} Re8 {[%emt 0:
02:05]} 23. Bf3 {[%emt 0:00:35]} Bb5 {[%emt 0:03:28]} 24. Rfc1 {[%emt 0:01:39]}
Bxc4 {[%emt 0:01:41]} 25. Rxc4 {[%emt 0:00:08]} Na6 {[%emt 0:00:17]} 26. g3 {
[%emt 0:03:38]} Nc5 {[%emt 0:00:28]} 27. Rd1 {[%emt 0:00:36]} Rd8 {[%emt 0:03:
04]} 28. Rc3 {[%emt 0:02:25]} Rd6 {[%emt 0:04:27]} 29. Re3 {[%emt 0:04:18]} Kf8
{[%emt 0:01:55]} 30. Rde1 {[%emt 0:02:03]} Ra8 {[%emt 0:01:18]} 31. Re7 {
[%emt 0:03:45]} Nd7 {[%emt 0:01:28]} 32. g4 {[%emt 0:04:09]} Rd8 {[%emt 0:03:
28]} 33. Kg2 {[%emt 0:00:25]} g6 {[%emt 0:00:45]} 34. h4 {[%emt 0:00:38]} g5 {
[%emt 0:00:41]} 35. h5 {[%emt 0:01:43]} Rf6 {[%emt 0:00:42]} 36. Kg3 {[%emt 0:
00:35]} Rf4 {[%emt 0:00:32]} 37. R1e3 {[%emt 0:00:40]} Rd4 {[%emt 0:00:50]} 38.
Re2 {[%emt 0:00:23]} Rf4 {[%emt 0:00:20]} 39. Re1 {[%emt 0:00:38]} Rd4 {
[%emt 0:00:29]} 40. Kg2 {[%emt 0:00:33]} Rf4 {[%emt 0:00:23]} 41. a3 {[%emt 0:
06:59]} Rd4 {[%emt 0:02:25]} 42. Kg3 {[%emt 0:04:07]} Rf4 {[%emt 0:03:13]} 43.
R1e3 {[%emt 0:02:20]} Rd4 {[%emt 0:01:01]} 44. Re1 {[%emt 0:08:28]} Rf4 {
[%emt 0:00:09]} 45. R1e3 {[%emt 0:00:56]} Rd4 {[%emt 0:00:07]} 46. Re2 {
[%emt 0:00:08]} Rf4 {[%emt 0:00:25]} 47. R7e3 {[%emt 0:00:20]} Nf6 {[%emt 0:04:
57]} 48. Rc2 {[%emt 0:01:21]} Rd7 {[%emt 0:02:31]} 49. Rc6 {[%emt 0:02:26]} Kg7
{[%emt 0:01:58]} 50. Rd3 {[%emt 0:02:15]} Ne8 {[%emt 0:03:12]} 51. Rd2 {
[%emt 0:02:23]} Nd6 {[%emt 0:04:17]} 52. Rdc2 {[%emt 0:01:58]} Ne8 {[%emt 0:05:
05]} 53. R2c3 {[%emt 0:00:49]} Rd4 {[%emt 0:00:28]} 54. b3 {[%emt 0:01:23]} Rf4
{[%emt 0:03:41]} 55. Rd3 {[%emt 0:00:55]} Nd6 {[%emt 0:00:45]} 56. Rc1 {
[%emt 0:00:55]} Kf8 {[%emt 0:01:40]} 57. Re1 {[%emt 0:00:20]} Ne8 {[%emt 0:00:
57]} 58. Re4 {[%emt 0:00:09]} Rxe4 {[%emt 0:00:25]} 59. Bxe4 {[%emt 0:00:04]}
Nf6 {[%emt 0:00:15]} 60. f3 {[%emt 0:00:34]} c6 {[%emt 0:02:06]} 61. d6 {
[%emt 0:00:03]} Nxe4+ {[%emt 0:00:15]} 62. fxe4 {[%emt 0:00:22]} f6 {[%emt 0:
00:02]} 63. b4 {[%emt 0:01:35]} axb4 {[%emt 0:00:16]} 64. axb4 {[%emt 0:00:09]}
Kf7 {[%emt 0:00:04]} 65. Ra3 {[%emt 0:00:11]} Rxd6 {[%emt 0:02:12]} 66. Ra7+ {
[%emt 0:01:18]} Ke6 {[%emt 0:00:14]} 67. Rh7 {[%emt 0:00:03]} Rd3+ {[%emt 0:00:
21]} 68. Kf2 {[%emt 0:00:37]} Rd4 {[%emt 0:00:34]} 69. Ke3 {[%emt 0:00:34]}
Rxb4 {[%emt 0:00:04]} 70. Rxh6 {[%emt 0:00:03]} Rb3+ {[%emt 0:00:15]} 71. Kf2 {
[%emt 0:01:24]} Ke5 {[%emt 0:01:17]} 72. Kg2 {[%emt 0:00:14]} c5 {[%emt 0:01:
03]} 73. Rg6 {[%emt 0:00:25]} Rd3 {[%emt 0:00:32]} 74. h6 {[%emt 0:00:55]} Rd8
{[%emt 0:00:16]} 75. h7 {[%emt 0:00:42]} Rh8 {[%emt 0:00:05]} 76. Rh6 {[%emt 0:
00:34]} Kxe4 {[%emt 0:00:33]} 77. Kg3 {[%emt 0:00:31]} Ke5 {[%emt 0:00:13]} 78.
Kf3 {[%emt 0:00:09]} c4 {[%emt 0:00:48]} 79. Ke3 {[%emt 0:00:04]} b5 {[%emt 0:
00:04]} 80. Rh1 {[%emt 0:01:15]} b4 {[%emt 0:00:10]} 81. Rh6 {[%emt 0:00:30]}
b3 {[%emt 0:00:42]} 82. Kd2 {[%emt 0:00:04]} Kd4 {[%emt 0:01:09]} 83. Rh3 {
[%emt 0:00:23]} b2 {[%emt 0:01:05]} 84. Kc2 {[%emt 0:00:04]} c3 {[%emt 0:00:17]
} 85. Rd3+ {[%emt 0:01:02]} Ke4 {[%emt 0:00:04]} 86. Rxc3 {[%emt 0:00:09]} Rxh7
{[%emt 0:00:05]} 87. Kxb2 {[%emt 0:00:08]} Rh4 {[%emt 0:00:56]} 88. Rc6 {
[%emt 0:00:14]} Rxg4 {[%emt 0:00:34]} 89. Rxf6 {[%emt 0:00:03]} Rf4 {[%emt 0:
00:15]} 90. Rc6 {[%emt 0:00:41]} Kf3 {[%emt 0:00:40]} 91. Kc2 {[%emt 0:02:10]}
Rd4 {[%emt 0:00:26]} 92. Rf6+ {[%emt 0:00:13]} Kg3 {[%emt 0:00:12]} 93. Kc3 {
[%emt 0:00:30]} Rd8 {[%emt 0:00:08]} 0-1

[Event "23rd ETCC Women 2021"]
[Site "Catez"]
[Date "2021.11.16"]
[Round "5.15"]
[White "Pavlidou, Ekaterini"]
[Black "Milliet, Sophie"]
[Result "1/2-1/2"]
[ECO "E51"]
[WhiteElo "2172"]
[BlackElo "2418"]
[Annotator "NA"]
[PlyCount "79"]
[EventDate "2021.11.08"]
[EventType "team-tourn"]
[EventCountry "SLO"]
[SourceTitle "playchess.com"]
[Source "ChessBase"]
[SourceQuality "1"]
[WhiteTeam "Greece"]
[BlackTeam "France"]
[WhiteTeamCountry "GRE"]
[BlackTeamCountry "FRA"]
[TimeControl "40/5400+30:1800+30"]

1. d4 {[%emt 0:00:16]} Nf6 {[%emt 0:00:10]} 2. c4 {[%emt 0:00:09]} e6 {[%emt 0:
00:03]} 3. Nc3 {[%emt 0:00:11]} Bb4 {[%emt 0:00:03]} 4. e3 {[%emt 0:00:33]} O-O
{[%emt 0:00:10]} 5. Bd2 {[%emt 0:00:15]} d5 {[%emt 0:00:41]} 6. Nf3 {[%emt 0:
00:08]} b6 {[%emt 0:00:32]} 7. cxd5 {[%emt 0:00:11]} exd5 {[%emt 0:00:03]} 8.
Rc1 {[%emt 0:00:12]} Bb7 {[%emt 0:01:38]} 9. Bd3 {[%emt 0:00:11]} Re8 {[%emt 0:
00:49]} 10. O-O {[%emt 0:03:45]} Bf8 {[%emt 0:00:38]} 11. Ne5 {[%emt 0:02:33]}
c5 {[%emt 0:00:09]} 12. f4 {[%emt 0:08:43]} Nc6 {[%emt 0:00:12]} 13. Nxd5 {
[%emt 0:16:59]} Qxd5 {[%emt 0:00:36]} 14. Bc4 {[%emt 0:00:12]} Qxg2+ {[%emt 0:
00:27]} 15. Kxg2 {[%emt 0:00:12]} Nxe5+ {[%emt 0:00:03]} 16. Kg1 {[%emt 0:02:
01]} Nxc4 {[%emt 0:00:06]} 17. Rxc4 {[%emt 0:01:17]} Rad8 {[%emt 0:00:41]} 18.
Bc1 {[%emt 0:16:25]} Ba6 {[%emt 0:10:28]} 19. b3 {[%emt 0:03:51]} Bxc4 {
[%emt 0:00:54]} 20. bxc4 {[%emt 0:00:06]} cxd4 {[%emt 0:00:23]} 21. exd4 {
[%emt 0:00:22]} Rxd4 {[%emt 0:02:01]} 22. Qxd4 {[%emt 0:11:10]} Bc5 {[%emt 0:
00:03]} 23. Qxc5 {[%emt 0:00:06]} bxc5 {[%emt 0:00:03]} 24. Ba3 {[%emt 0:00:08]
} h5 {[%emt 0:38:31]} 25. Bxc5 {[%emt 0:02:01]} Rc8 {[%emt 0:00:07]} 26. Bxa7 {
[%emt 0:06:10]} Rxc4 {[%emt 0:00:02]} 27. Bb8 {[%emt 0:03:25]} Ne4 {[%emt 0:06:
51]} 28. Re1 {[%emt 0:03:37]} Kh7 {[%emt 0:08:03]} 29. Re2 {[%emt 0:02:47]} Kg6
{[%emt 0:15:12]} 30. Rb2 {[%emt 0:03:04]} h4 {[%emt 0:03:00]} 31. h3 {[%emt 0:
00:19]} Rc3 {[%emt 0:03:49]} 32. Kg2 {[%emt 0:00:23]} f6 {[%emt 0:02:07]} 33.
Rb4 {[%emt 0:06:10]} Ng3 {[%emt 0:04:29]} 34. a4 {[%emt 0:01:25]} Ra3 {[%emt 0:
02:01]} 35. Bc7 {[%emt 0:01:58]} Kf5 {[%emt 0:01:49]} 36. a5 {[%emt 0:00:38]}
Ra2+ {[%emt 0:00:06]} 37. Kf3 {[%emt 0:00:35]} Ra3+ {[%emt 0:00:02]} 38. Kg2 {
[%emt 0:00:09]} Ra2+ {[%emt 0:00:44]} 39. Kf3 {[%emt 0:00:05]} Ra3+ {[%emt 0:
00:04]} 40. Kg2 {[%emt 0:00:14]} 1/2-1/2